bitfinex/quotes_ETHUSD_20251019
["timestamp","ask_amount","ask_price","bid_price","bid_amount"]
[1760869967015,0.441,3935.2,3934.7,0.1264]
[1760869967419,0.46537441,3935.1,3934.5,0.002]
[1760869967727,0.1264,3935.0,3934.5,0.002]
[1760869967936,0.02537441,3934.9,3934.5,0.002]
[1760869968530,0.1264,3935.0,3934.5,0.002]
[1760869968730,0.001,3935.2,3934.5,0.002]
[1760869968896,0.02637441,3935.2,3934.6,0.1264]
[1760869969100,2.56759257,3935.2,3934.6,0.1264]
[1760869969300,2.54128699,3935.1,3934.6,0.1264]
[1760869969500,2.54136064,3934.9,3934.5,0.002]
[1760869969714,0.02537441,3934.8,3934.5,0.002]
[1760869971998,2.54155441,3934.6,3934.5,0.002]
[1760869972239,2.69332882,3934.6,3934.5,0.002]
[1760869972441,6.36215431,3934.6,3934.5,0.002]
[1760869972734,6.3367799,3934.6,3934.5,0.002]
[1760869973112,5.7031799,3934.6,3934.5,0.002]
[1760869973437,9.0987799,3934.6,3934.5,0.002]
[1760869974204,2.58571038,3934.8,3934.6,2.54153234]
[1760869974205,0.04428425,3934.8,3934.6,2.54153234]
[1760869974434,0.04428425,3934.8,3934.5,0.002]
[1760869974601,0.001,3935.2,3934.6,2.54154423]
[1760869975118,0.001,3935.2,3934.5,0.368]
[1760869975338,0.001,3935.2,3934.6,0.366]
[1760869975534,0.001,3935.2,3935.1,2.54123148]
[1760869975855,0.001,3935.2,3934.7,0.3132]
[1760869975856,0.001,3935.2,3935.0,2.54128791]
[1760869976058,0.001,3935.2,3935.0,2.54123391]
[1760869976258,0.001,3935.2,3935.1,2.54123148]
[1760869977120,0.001,3935.2,3934.8,2.54142523]
[1760869977545,0.001,3935.2,3934.7,0.3132]
[1760869977866,0.001,3935.2,3934.7,2.85466096]
[1760869978156,0.001,3935.2,3934.5,0.002]
[1760869978355,2.56758809,3935.2,3934.5,0.002]
[1760869979061,2.5412458,3935.1,3934.5,0.002]
[1760869979262,2.54144087,3934.8,3934.5,0.002]
[1760869979429,0.2355,3934.6,3934.5,0.002]
[1760869979834,0.44,3934.8,3934.5,0.002]
[1760869980033,2.54155441,3934.6,3934.5,0.002]
[1760869980249,3.17515441,3934.6,3934.5,0.002]
[1760869980453,5.34315441,3934.6,3934.5,0.002]
[1760869980652,6.15770028,3934.6,3934.5,0.002]
[1760869983944,8.47870028,3934.6,3934.5,0.002]
[1760869984163,0.27978149,3934.9,3934.5,0.002]
[1760869984164,0.2355,3934.9,3934.5,0.002]
[1760869984456,0.44,3934.6,3934.5,0.002]
[1760869984624,3.64052882,3934.6,3934.5,0.002]
[1760869984823,0.02537441,3934.6,3934.5,0.002]
[1760869985024,0.001,3935.2,3934.5,0.002]
[1760869985226,0.1264,3935.1,3934.5,0.002]
[1760869985423,0.48957441,3935.0,3934.5,0.002]
[1760869985627,2.77285441,3934.6,3934.5,0.002]
[1760869985855,0.55680834,3934.6,3934.5,0.002]
[1760869986037,0.001,3935.2,3934.6,2.54154166]
[1760869986233,0.001,3935.2,3934.5,0.368]
[1760869986433,0.001,3935.2,3934.7,2.54148314]
[1760869986635,0.001,3935.2,3934.5,0.368]
[1760869986825,0.001,3935.2,3934.9,2.54133778]
[1760869987024,0.001,3935.2,3934.5,0.368]
[1760869987248,0.001,3935.2,3934.6,0.29116227]
[1760869987448,0.001,3935.2,3934.6,0.366]
[1760869987762,0.001,3935.2,3935.0,2.54128382]
[1760869988061,0.001,3935.2,3934.9,2.54129698]
[1760869988526,0.001,3935.2,3934.5,0.002]
[1760869989366,2.54126582,3935.1,3934.5,0.002]
[1760869989673,0.02637441,3935.2,3934.6,2.54153583]
[1760869989962,0.02637441,3935.2,3934.5,0.368]
[1760869989963,0.001,3935.2,3934.5,0.368]
[1760869990139,2.54218689,3935.2,3934.5,0.002]
[1760869990343,0.02537441,3935.1,3934.5,0.002]
[1760869990741,2.54148039,3934.8,3934.5,0.002]
[1760869990942,0.71467441,3934.7,3934.5,0.002]
[1760869991161,2.54155441,3934.6,3934.5,0.002]
[1760869991463,3.01055441,3934.6,3934.5,0.002]
[1760869991767,0.24567441,3934.7,3934.5,0.002]
[1760869992075,0.6336,3934.9,3934.5,0.002]
[1760869992232,0.2203,3934.7,3934.5,0.002]
[1760869992578,2.56692882,3934.6,3934.5,0.002]
[1760869992948,0.02537441,3934.6,3934.5,0.002]
[1760869993479,2.54155441,3934.6,3934.5,0.002]
[1760869993767,3.66952882,3934.6,3934.5,0.002]
[1760869993933,4.3512932,3934.6,3934.5,0.002]
[1760869994135,4.32591879,3934.6,3934.5,0.002]
[1760869994970,2.759,3934.6,3934.5,0.002]
[1760869995170,5.76955441,3934.6,3934.5,0.002]
[1760869995480,6.40315441,3934.6,3934.5,0.002]
[1760869995660,8.13115441,3934.6,3934.5,0.002]
[1760869997578,7.66215441,3934.6,3934.5,0.002]
[1760869997876,9.21218215,3934.6,3934.5,0.002]
[1760869998848,9.21218215,3934.6,3934.4,1e-08]
[1760869998849,5.02961901,3934.5,3934.4,1e-08]
[1760869999481,5.52399342,3934.5,3934.4,1e-08]
[1760869999778,5.54291399,3934.5,3934.4,1e-08]
[1760870000144,3.17567127,3933.8,3933.6,0.002]
[1760870000355,7.66167127,3933.8,3933.6,0.002]
[1760870000659,8.13067127,3933.8,3933.6,0.002]
[1760870000987,8.25707127,3933.8,3933.6,0.002]
[1760870002377,5.0301359,3933.7,3933.6,1e-08]
[1760870002582,6.43725569,3933.7,3933.6,1e-08]
[1760870002779,6.75448128,3933.7,3933.6,1e-08]
[1760870003454,4.27110564,3932.2,3932.1,0.002]
[1760870003655,2.48434538,3933.7,3932.2,0.183]
[1760870003897,2.54176639,3934.3,3932.3,0.366]
[1760870004198,0.366,3934.5,3933.4,2.54230727]
[1760870004379,2.54141882,3934.9,3933.5,0.366]
[1760870004592,0.001,3935.2,3934.8,0.183]
[1760870004783,0.001,3935.2,3934.9,0.366]
[1760870005621,0.001,3935.2,3934.8,0.183]
[1760870005918,0.001,3935.2,3934.9,0.366]
[1760870007031,0.001,3935.2,3935.0,0.366]
[1760870007385,0.001,3935.2,3935.1,0.366]
[1760870007989,0.001,3935.2,3934.8,0.183]
[1760870008517,0.02637441,3935.2,3934.8,0.183]
[1760870008828,0.02637441,3935.2,3934.9,0.366]
[1760870009115,0.001,3935.2,3934.9,0.366]
[1760870009316,0.001,3935.2,3934.8,0.183]
[1760870009506,0.001,3935.2,3934.9,0.366]
[1760870009932,0.001,3935.2,3935.1,2.54123148]
[1760870010098,0.001,3935.2,3935.0,0.366]
[1760870010510,0.001,3935.2,3935.1,2.90723148]
[1760870010815,0.001,3935.2,3935.1,0.30902315]
[1760870011120,0.001,3935.2,3934.8,0.183]
[1760870011824,2.54217659,3935.2,3934.8,0.183]
[1760870012250,0.001,3935.2,3934.8,0.183]
[1760870013088,0.001,3935.2,3934.8,3.09042187]
[1760870013325,0.001,3935.2,3934.8,0.549]
[1760870013714,0.001,3935.2,3934.8,0.183]
[1760870014222,0.02637441,3935.2,3934.7,0.1264]
[1760870014519,0.001,3935.2,3934.7,0.4924]
[1760870014928,2.54129759,3935.0,3934.3,0.183]
[1760870015228,0.02537441,3934.9,3934.4,0.1264]
[1760870015397,2.66769759,3935.0,3934.5,0.366]
[1760870015398,0.1264,3935.0,3934.5,0.366]
[1760870015824,0.001,3935.2,3934.6,0.366]
[1760870016006,2.54123148,3935.1,3934.3,0.183]
[1760870016208,2.54142407,3934.9,3934.3,0.183]
[1760870016548,0.02537441,3934.8,3934.3,0.183]
[1760870016691,2.54222343,3935.2,3934.3,3.0907401]
[1760870016897,2.54222343,3935.2,3934.3,0.549]
[1760870017211,0.02537441,3935.1,3934.3,0.549]
[1760870017397,0.001,3935.2,3934.3,0.549]
[1760870017398,0.001,3935.2,3934.6,2.54155046]
[1760870017593,0.001,3935.2,3934.9,2.5413603]
[1760870017824,0.001,3935.2,3934.4,0.366]
[1760870018030,0.001,3935.2,3934.9,2.54131918]
[1760870018526,0.001,3935.2,3935.0,0.366]
[1760870019025,0.001,3935.2,3934.5,0.67507573]
[1760870019224,0.001,3935.2,3934.5,0.366]
[1760870019428,0.001,3935.2,3934.3,2.938]
[1760870019626,0.001,3935.2,3934.7,2.54148851]
[1760870019828,0.001,3935.2,3934.4,0.366]
[1760870019829,0.001,3935.2,3934.5,3.869]
[1760870020200,0.001,3935.2,3935.1,2.54123148]
[1760870020604,0.001,3935.2,3935.1,2.90723148]
[1760870021206,0.001,3935.2,3934.5,3.869]
[1760870021414,0.001,3935.2,3935.1,2.54123148]
[1760870021907,0.001,3935.2,3935.1,6.77623148]
[1760870022519,0.001,3935.2,3935.1,2.90723148]
[1760870022720,0.001,3935.2,3935.1,7.38923148]
[1760870024810,0.001,3935.2,3935.1,7.02323148]
[1760870025024,0.001,3935.2,3935.1,7.38923148]
[1760870025942,0.001,3935.2,3935.1,7.02323148]
[1760870026148,0.001,3935.2,3935.1,7.14963148]
[1760870026839,0.001,3935.2,3935.1,7.51563148]
[1760870027029,0.001,3935.2,3935.1,7.14963148]
[1760870027229,0.001,3935.2,3935.1,4.39563148]
[1760870027845,0.001,3935.2,3935.1,0.1264]
[1760870028617,0.001,3935.2,3935.1,2.66763148]
[1760870028817,0.001,3935.2,3935.1,3.7273305]
[1760870029011,0.001,3935.2,3935.1,3.3613305]
[1760870029216,0.001,3935.2,3935.1,2.66763148]
[1760870031250,0.001,3935.2,3935.1,5.41863148]
[1760870031764,0.001,3935.2,3935.1,5.78463148]
[1760870031966,0.001,3935.2,3935.1,5.41863148]
[1760870033533,0.001,3935.2,3935.1,5.78463148]
[1760870033736,0.001,3935.2,3935.1,10.6590305]
[1760870034121,0.001,3935.2,3935.1,12.3870305]
[1760870034617,0.001,3935.2,3935.1,12.0210305]
[1760870036677,0.001,3935.2,3935.1,11.01563148]
[1760870037964,0.001,3935.2,3935.1,9.16123148]
[1760870039895,0.001,3935.2,3935.1,6.62]
[1760870040196,0.4412,3935.2,3935.1,6.62]
[1760870040544,0.4412,3935.2,3935.1,3.869]
[1760870041244,0.4412,3935.2,3934.5,3.869]
[1760870041588,0.2188,3934.6,3933.6,0.002]
[1760870041745,0.65897441,3934.5,3933.6,0.002]
[1760870041945,0.2188,3933.7,3933.6,0.002]
[1760870042156,0.2188,3933.7,3932.5,2.90885811]
[1760870042157,1.40345061,3933.0,3931.0,0.002]
[1760870042342,0.002,3933.6,3928.0,5.23927987]
[1760870042343,0.2188,3931.9,3928.0,5.23927987]
[1760870042544,0.2188,3931.9,3928.1,2.9073]
[1760870042545,0.6336,3929.4,3928.1,2.9073]
[1760870042744,0.02537441,3929.3,3928.2,2.749]
[1760870042980,0.6336,3929.2,3928.6,2.54541592]
[1760870043201,0.6336,3929.6,3928.7,8.049]
[1760870043400,0.6336,3929.6,3928.8,2.749]
[1760870043618,0.46557441,3930.5,3928.8,2.749]
[1760870043619,0.6336,3929.8,3928.8,2.749]
[1760870043790,0.12452945,3930.3,3928.8,3.59808]
[1760870043991,0.6336,3930.2,3928.8,3.59808]
[1760870044306,0.6336,3930.0,3928.5,2.54548209]
[1760870044618,0.6336,3929.8,3928.9,5.3]
[1760870044982,0.4571,3929.7,3928.9,5.3]
[1760870045387,0.4571,3929.7,3929.0,2.749]
[1760870045713,0.4571,3929.7,3929.2,2.54503469]
[1760870045916,0.6336,3929.6,3929.3,2.749]
[1760870046216,0.6336,3930.2,3929.5,2.54484541]
[1760870046416,0.04433027,3930.6,3929.6,2.749]
[1760870046417,0.6336,3929.7,3929.6,2.749]
[1760870046883,0.2157,3929.8,3929.6,2.749]
[1760870047089,0.02537441,3930.0,3929.6,2.749]
[1760870047498,0.02537441,3930.4,3929.8,2.54462591]
[1760870047723,0.04433027,3930.6,3929.6,2.749]
[1760870047724,0.04433027,3930.6,3929.7,2.54472351]
[1760870048014,0.1272,3930.1,3930.0,2.54452232]
[1760870048217,0.1272,3930.1,3930.0,10.59452232]
[1760870049408,0.1272,3930.1,3929.4,2.75]
[1760870049409,0.4571,3930.1,3929.4,2.75]
[1760870049610,0.6336,3930.0,3929.4,2.75]
[1760870049921,1.9468,3931.0,3929.4,2.75]
[1760870049922,0.6336,3930.7,3929.5,5.3]
[1760870050121,0.6336,3930.4,3929.6,2.75]
[1760870050416,0.2182,3929.7,3929.5,5.3]
[1760870050621,0.2182,3929.7,3929.6,2.75]
[1760870050805,0.6336,3929.9,3929.6,2.75]
[1760870051005,0.677,3929.8,3929.5,5.3]
[1760870051184,0.8542,3929.8,3929.7,2.75]
[1760870051381,0.8542,3929.8,3929.5,5.3]
[1760870051585,0.8542,3929.8,3929.6,2.75]
[1760870051785,0.8542,3929.8,3929.7,2.75]
[1760870051996,1.09,3929.7,3929.5,5.3]
[1760870052207,0.6336,3930.1,3929.6,2.75]
[1760870052582,0.04433313,3930.5,3929.9,2.54458703]
[1760870052795,0.4541,3930.4,3929.5,5.3]
[1760870053015,0.2234,3929.7,3929.5,5.3]
[1760870053212,0.2234,3929.7,3929.6,2.75]
[1760870053818,0.2234,3929.7,3929.5,5.3]
[1760870054006,0.2234,3929.7,3929.6,2.75]
[1760870055098,0.2234,3929.7,3929.6,2.752]
[1760870055297,0.2244,3929.7,3929.6,2.752]
[1760870055711,0.678,3929.7,3929.6,2.752]
[1760870056090,0.2244,3929.7,3929.6,2.752]
[1760870056284,0.2244,3929.7,3929.6,5.29678827]
[1760870056622,0.2244,3929.7,3929.6,2.752]
[1760870057525,0.001,3929.7,3929.6,10.59678827]
[1760870058519,0.001,3929.7,3929.6,11.91095228]
[1760870058828,0.001,3929.7,3929.6,10.59678827]
[1760870059808,0.001,3929.7,3929.6,11.03018827]
[1760870060029,0.001,3929.7,3929.6,11.15738827]
[1760870060231,0.001,3929.7,3929.6,10.72398827]
[1760870060439,0.001,3929.7,3929.6,11.15738827]
[1760870060611,0.001,3929.7,3929.6,12.52761229]
[1760870061123,0.001,3929.7,3929.6,4.04421229]
[1760870061301,0.001,3929.7,3929.6,0.002]
[1760870061499,0.001,3929.7,3929.6,2.98018827]
[1760870061700,0.001,3929.7,3929.6,7.84678827]
[1760870062233,0.001,3929.7,3929.6,8.28018827]
[1760870062436,0.001,3929.7,3929.6,9.63769511]
[1760870063201,0.001,3929.7,3929.6,11.36569511]
[1760870063833,0.001,3929.7,3929.6,15.26169511]
[1760870064034,0.001,3929.7,3929.6,14.11569511]
[1760870064637,0.001,3929.7,3929.6,11.36569511]
[1760870064805,0.001,3929.7,3929.6,12.75818827]
[1760870066313,0.001,3929.7,3929.6,10.00818827]
[1760870066519,0.001,3929.7,3929.6,12.75818827]
[1760870067338,0.001,3929.7,3929.6,13.39178827]
[1760870067723,0.001,3929.7,3929.6,10.00818827]
[1760870067923,0.001,3929.7,3929.6,15.15949511]
[1760870068320,0.001,3929.7,3929.6,11.26349511]
[1760870068522,0.001,3929.7,3929.6,14.01349511]
[1760870070033,0.001,3929.7,3929.6,14.01249511]
[1760870070230,0.001,3929.7,3929.6,12.28449511]
[1760870070438,0.001,3929.7,3929.6,14.01249511]
[1760870071226,0.001,3929.7,3929.6,14.13969511]
[1760870075026,1e-08,3930.5,3929.6,14.77329511]
[1760870075228,1e-08,3930.5,3930.4,4.4305703]
[1760870075434,1e-08,3930.5,3930.4,7.1795703]
[1760870075758,1e-08,3930.5,3930.4,7.6272703]
[1760870076063,1e-08,3930.5,3930.4,12.7272703]
[1760870078542,1e-08,3930.5,3930.4,13.3608703]
[1760870078741,1e-08,3930.5,3930.4,14.95139341]
[1760870079764,1e-08,3930.5,3930.4,12.32901572]
[1760870080068,1e-08,3930.5,3930.4,15.07701572]
[1760870080265,1e-08,3930.5,3930.4,12.32901572]
[1760870080477,1e-08,3930.5,3930.4,15.07701572]
[1760870083352,1e-08,3930.5,3930.4,12.32901572]
[1760870083552,1e-08,3930.5,3930.4,15.07601572]
[1760870084189,1e-08,3930.5,3930.4,14.31579341]
[1760870084373,1e-08,3930.5,3930.4,13.86809341]
[1760870085164,1e-08,3930.5,3930.4,13.99529341]
[1760870086266,1e-08,3930.5,3930.4,11.24829341]
[1760870086469,1e-08,3930.5,3930.4,13.99529341]
[1760870087794,1e-08,3930.5,3930.4,16.93189341]
[1760870087957,1e-08,3930.5,3930.4,14.24989341]
[1760870088384,1e-08,3930.5,3930.4,13.99429341]
[1760870089291,1e-08,3930.5,3930.4,13.99629341]
[1760870089461,1e-08,3930.5,3930.4,13.83799341]
[1760870089653,1e-08,3930.5,3930.4,11.09199341]
[1760870089990,0.44570001,3930.5,3930.4,12.2474703]
[1760870090379,0.44570001,3930.5,3930.4,12.1202703]
[1760870090588,0.44570001,3930.5,3930.4,12.1192703]
[1760870090956,0.44570001,3930.5,3930.4,10.3912703]
[1760870091356,0.2171,3930.9,3930.8,2.54401139]
[1760870091553,0.001,3930.9,3930.8,7.52582272]
[1760870091752,0.13,3930.9,3930.8,7.01701139]
[1760870091995,0.13,3930.9,3930.8,5.28901139]
[1760870095178,0.13,3930.9,3930.8,2.54401139]
[1760870095509,0.13,3930.9,3930.8,5.28901139]
[1760870095794,0.13,3930.9,3930.8,10.38901139]
[1760870096165,0.13,3930.9,3930.8,7.64401139]
[1760870096471,0.13,3930.9,3930.8,10.38901139]
[1760870100512,0.13,3930.9,3930.8,10.38801139]
[1760870100706,0.13,3930.9,3930.7,0.1272]
[1760870100707,0.13,3930.9,3930.4,0.002]
[1760870100932,0.13,3930.9,3928.6,0.2546]
[1760870100933,0.13,3930.9,3927.0,5.65584424]
[1760870100935,2.54639622,3927.2,3927.0,5.65584424]
[1760870101136,1.7955656,3926.9,3925.9,0.84785705]
[1760870101336,0.8497,3926.0,3925.9,3.59485705]
[1760870101821,1.39429848,3926.0,3925.9,3.59485705]
[1760870102036,1.39429848,3926.0,3925.9,0.84785705]
[1760870102249,0.8497,3926.0,3925.9,3.59485705]
[1760870102737,0.8497,3926.0,3925.9,18.09485705]
[1760870102901,0.8497,3926.0,3925.9,18.09385705]
[1760870103338,0.8497,3926.0,3925.9,0.84785705]
[1760870103637,1.10747,3926.0,3925.9,0.84785705]
[1760870103834,0.8497,3926.0,3925.9,18.09485705]
[1760870104199,0.8497,3926.0,3925.9,3.59485705]
[1760870105936,0.8497,3926.0,3925.9,0.84785705]
[1760870106139,0.8497,3926.0,3925.9,3.59385705]
[1760870106338,0.8497,3926.0,3925.9,0.84785705]
[1760870106950,0.8497,3926.0,3925.9,6.14204368]
[1760870107423,0.8497,3926.0,3925.9,3.39704368]
[1760870107621,1.38924102,3926.0,3925.9,6.14204368]
[1760870108436,1.17314102,3926.0,3925.9,6.14204368]
[1760870109022,1.17314102,3926.0,3925.9,3.59485705]
[1760870109242,1.17314102,3926.0,3925.9,6.14204368]
[1760870109618,1.17314102,3926.0,3925.9,3.39704368]
[1760870109824,1.17314102,3926.0,3925.9,6.14304368]
[1760870110159,0.04437406,3926.4,3926.3,2.54692713]
[1760870110325,0.04437406,3926.4,3926.3,5.29292713]
[1760870110521,0.2161,3927.1,3927.0,2.54647313]
[1760870110755,0.75441642,3927.1,3927.0,5.29247313]
[1760870110951,0.75441642,3927.1,3926.8,2.54657142]
[1760870110952,0.1272,3927.0,3926.2,0.1272]
[1760870111156,0.1272,3926.8,3926.2,0.1272]
[1760870111341,0.1272,3926.8,3925.8,2.54724769]
[1760870111342,0.1272,3926.5,3926.4,2.54686226]
[1760870111653,0.66551642,3926.5,3926.3,14.5]
[1760870111852,0.56369083,3926.4,3926.3,17.04692179]
[1760870112156,0.56369083,3926.4,3926.3,19.79292179]
[1760870112354,0.53831642,3926.4,3926.3,19.79292179]
[1760870112533,0.02537441,3926.9,3926.8,2.54658631]
[1760870112737,0.56416279,3926.9,3926.8,5.29258631]
[1760870113355,0.53878838,3926.9,3926.8,2.54660283]
[1760870113557,0.53878838,3926.9,3926.8,5.29260283]
[1760870113558,0.75618838,3926.9,3926.8,5.29260283]
[1760870113754,0.75618838,3926.9,3926.8,2.54660283]
[1760870114454,0.75618838,3926.9,3926.8,5.29260283]
[1760870115830,0.6336,3926.8,3925.6,0.4407]
[1760870116172,0.67421482,3926.5,3926.4,2.54686226]
[1760870116470,0.6336,3926.7,3926.6,2.54673254]
[1760870116650,0.90766414,3926.8,3926.7,2.54666768]
[1760870116835,1.21384547,3926.8,3926.7,5.29266768]
[1760870117041,0.53950507,3926.8,3926.7,6.0766077]
[1760870117277,0.53950507,3926.8,3926.7,5.29266768]
[1760870117629,0.53950507,3926.8,3926.7,19.79266768]
[1760870119340,0.53950507,3926.8,3926.7,17.04666768]
[1760870119540,0.53950507,3926.8,3926.7,19.79266768]
[1760870119841,0.53950507,3926.8,3926.5,2.54673395]
[1760870120048,0.56487948,3926.7,3926.6,2.54673254]
[1760870120248,0.56487948,3926.7,3926.6,2.746]
[1760870120448,0.53950507,3926.7,3926.6,5.29273254]
[1760870120649,1.44120452,3926.7,3926.6,5.29273254]
[1760870121066,0.53950507,3926.7,3926.6,5.29273254]
[1760870121262,1.44120452,3926.7,3926.6,5.29273254]
[1760870121484,0.53950507,3926.7,3926.6,5.29273254]
[1760870122044,1.44186357,3926.7,3926.6,5.29273254]
[1760870122244,0.53950507,3926.7,3926.6,5.29273254]
[1760870122541,0.53950507,3926.7,3926.6,2.54673254]
[1760870122772,0.53950507,3926.7,3926.6,5.29273254]
[1760870122973,1.44241107,3926.7,3926.6,2.54673254]
[1760870123144,1.44241107,3926.7,3926.6,5.29273254]
[1760870123339,0.53950507,3926.7,3926.6,5.29273254]
[1760870123637,1.90100129,3926.7,3926.6,5.29273254]
[1760870124042,1.44342289,3926.7,3926.6,5.29273254]
[1760870124273,0.53950507,3926.7,3926.6,5.29273254]
[1760870125074,0.53950507,3926.7,3926.6,5.29473254]
[1760870125237,1.90100129,3926.7,3926.6,5.29473254]
[1760870125977,0.53950507,3926.7,3926.6,5.29473254]
[1760870126473,0.6336,3926.6,3926.4,2.746]
[1760870126672,1.17310507,3926.5,3926.4,2.746]
[1760870127386,1.17310507,3926.5,3926.2,0.002]
[1760870127387,0.6336,3926.4,3926.2,0.002]
[1760870127679,1.19847948,3926.3,3926.2,0.002]
[1760870128345,1.19847948,3926.3,3926.2,2.748]
[1760870128852,0.6336,3926.2,3925.9,0.84985705]
[1760870129053,1.19847948,3926.1,3926.0,2.746]
[1760870129258,0.6336,3926.0,3925.9,0.84985705]
[1760870129456,1.17310507,3926.0,3925.9,0.84985705]
[1760870129642,1.17310507,3926.0,3925.9,3.59585705]
[1760870130085,0.53950507,3926.0,3925.9,3.59585705]
[1760870130384,0.53950507,3926.0,3925.9,6.14304368]
[1760870130753,1.91193897,3926.0,3925.9,6.14304368]
[1760870131074,0.53950507,3926.0,3925.9,6.14304368]
[1760870131957,0.53950507,3926.0,3925.9,6.58374368]
[1760870132349,0.53950507,3926.0,3925.9,3.39704368]
[1760870132550,0.53950507,3926.0,3925.9,6.14304368]
[1760870133351,0.53950507,3926.0,3925.9,6.58374368]
[1760870133651,0.53950507,3926.0,3925.9,3.39704368]
[1760870133952,0.53950507,3926.0,3925.9,6.14304368]
[1760870137552,4.55353276,3927.0,3926.3,2.54691672]
[1760870137553,0.6346,3927.0,3926.3,2.54691672]
[1760870137792,0.1272,3926.4,3926.3,2.54691672]
[1760870137954,0.1272,3926.4,3926.3,5.73911672]
[1760870138653,0.1272,3926.4,3926.3,5.29291672]
[1760870139394,0.1272,3926.4,3926.3,5.73911672]
[1760870139596,0.1272,3926.4,3926.3,5.29291672]
[1760870139887,0.001,3927.0,3926.8,2.54659542]
[1760870140055,0.001,3927.0,3926.9,2.745]
[1760870140254,0.6336,3926.8,3925.9,0.84985705]
[1760870140577,0.1272,3926.5,3926.1,2.5470446]
[1760870140996,0.1272,3926.5,3926.2,2.745]
[1760870141208,0.1272,3926.5,3926.4,2.54686226]
[1760870141410,0.1272,3926.5,3926.4,5.29186226]
[1760870142113,0.6336,3926.4,3925.9,0.84985705]
[1760870142289,0.1272,3926.2,3926.1,2.54699293]
[1760870142480,0.1272,3926.5,3926.3,2.54688972]
[1760870142880,0.6336,3926.4,3925.9,0.84985705]
[1760870143108,0.1272,3926.2,3926.0,2.745]
[1760870143314,0.1272,3926.2,3926.1,2.54699748]
[1760870143911,0.1282,3926.5,3926.4,2.54686226]
[1760870144101,0.1282,3926.5,3926.4,5.29186226]
[1760870145627,0.001,3926.5,3926.4,6.67082477]
[1760870146515,0.001,3926.5,3926.4,8.39882477]
[1760870147626,0.001,3926.5,3926.4,5.65382477]
[1760870147811,0.001,3926.5,3926.4,8.39782477]
[1760870154224,0.001,3926.5,3926.4,5.65382477]
[1760870154520,0.001,3926.5,3926.4,8.39682477]
[1760870155833,0.001,3926.5,3926.4,22.89682477]
[1760870158237,0.001,3926.5,3926.4,22.89582477]
[1760870158732,0.001,3926.5,3926.4,20.15382477]
[1760870158932,0.001,3926.5,3926.4,22.89582477]
[1760870159134,0.001,3926.5,3926.4,20.15382477]
[1760870159639,0.001,3926.5,3926.4,22.89582477]
[1760870160939,0.001,3926.9,3926.8,2.54660283]
[1760870161236,0.001,3926.9,3926.8,5.41580283]
[1760870161424,0.001,3926.9,3926.8,7.08976988]
[1760870161618,0.001,3926.9,3926.8,6.64356988]
[1760870162335,0.001,3926.9,3926.8,7.08976988]
[1760870162931,0.001,3926.9,3926.8,6.64356988]
[1760870164217,0.001,3926.9,3926.8,21.14356988]
[1760870164419,0.001,3926.9,3926.8,21.14256988]
[1760870164621,0.001,3926.9,3926.8,18.40156988]
[1760870164831,0.001,3926.9,3926.8,21.14256988]
[1760870166229,0.001,3926.9,3926.8,19.91480283]
[1760870166961,0.001,3926.9,3926.8,23.78380283]
[1760870170750,0.001,3926.9,3926.8,21.04280283]
[1760870170926,0.001,3926.9,3926.8,26.07355038]
[1760870171118,1e-08,3927.3,3927.2,2.54634345]
[1760870171323,1e-08,3927.3,3927.2,5.6681778]
[1760870171623,1e-08,3927.3,3927.2,6.0978778]
[1760870171855,1e-08,3927.3,3927.2,20.5978778]
[1760870173561,1e-08,3927.3,3927.2,20.1681778]
[1760870173770,1e-08,3927.3,3927.2,17.17354345]
[1760870173939,1e-08,3927.3,3927.2,19.91254345]
[1760870174323,0.001,3927.4,3927.2,19.91254345]
[1760870174523,0.001,3927.8,3927.7,4.27401929]
[1760870175062,0.001,3927.8,3927.7,21.51301929]
[1760870175253,0.001,3927.8,3927.7,21.54530271]
[1760870175575,0.1492,3927.8,3927.7,21.54530271]
[1760870176275,0.1492,3927.8,3927.7,19.78501929]
[1760870176430,0.1492,3927.8,3927.7,19.78401929]
[1760870178828,0.1492,3927.8,3927.7,5.28401929]
[1760870179140,0.1492,3927.8,3927.7,2.54601929]
[1760870179346,0.1492,3927.8,3927.7,19.78401929]
[1760870180426,0.001,3927.8,3927.7,19.78401929]
[1760870180740,0.1492,3927.8,3927.7,19.78401929]
[1760870182167,0.1492,3927.8,3927.7,17.04601929]
[1760870182341,0.1492,3927.8,3927.7,19.78301929]
[1760870183747,0.15,3927.8,3927.7,19.78301929]
[1760870184458,0.15,3927.8,3927.7,17.04601929]
[1760870184770,0.15,3927.8,3927.7,19.78301929]
[1760870185458,0.15,3927.8,3927.7,17.237]
[1760870185867,0.15,3927.8,3927.7,19.78301929]
[1760870186384,0.15,3927.8,3927.7,19.78201929]
[1760870187542,0.001,3927.8,3927.7,19.78201929]
[1760870187746,0.1508,3927.8,3927.7,19.78201929]
[1760870188246,0.001,3927.8,3927.7,19.78201929]
[1760870188443,0.001,3927.8,3927.7,22.01483401]
[1760870188881,0.001,3927.8,3927.7,19.78201929]
[1760870189078,0.001,3927.8,3927.7,2.54601929]
[1760870189246,0.001,3927.8,3927.7,5.28201929]
[1760870189670,0.1485,3927.8,3927.7,19.78201929]
[1760870191482,0.1485,3927.8,3927.7,17.04601929]
[1760870191784,0.1485,3927.8,3927.7,19.78101929]
[1760870192183,0.1485,3927.8,3927.7,17.235]
[1760870192479,0.6336,3927.7,3926.1,2.76579435]
[1760870192687,0.1485,3927.8,3926.5,2.737]
[1760870192848,0.1485,3927.8,3926.7,2.54666768]